bitfinex-derivatives/quotes_SOLF0:USTF0_20260116
["timestamp","ask_amount","ask_price","bid_price","bid_amount"]
[1768545352712,23.23311865,143.24,143.14,41.37185621]
[1768545353308,23.23259093,143.24,143.14,41.37185621]
[1768545360114,23.23259093,143.24,143.16,36.84269354]
[1768545360918,21.64265112,143.24,143.16,36.84269354]
[1768545364821,21.64265112,143.24,143.16,43.13209354]
[1768545368919,21.64265112,143.24,143.17,43.13149354]
[1768545370926,21.64265112,143.24,143.18,6.2884]
[1768545372826,21.64265112,143.24,143.19,6.288]
[1768545374825,21.64265112,143.24,143.2,6.2875]
[1768545375020,21.5512255,143.26,143.2,6.2875]
[1768545375227,21.5512255,143.26,143.2,43.13019354]
[1768545418468,5.17655452,143.25,143.2,43.13019354]
[1768545418670,5.17655452,143.24,143.2,43.13019354]
[1768545418856,21.5512255,143.26,143.2,43.13019354]
[1768545419056,5.17655452,143.25,143.2,43.13019354]
[1768545419257,5.17655452,143.24,143.2,43.13019354]
[1768545419469,21.5512255,143.26,143.2,43.13019354]
[1768545419669,5.178446,143.25,143.2,43.13019354]
[1768545419867,5.178446,143.24,143.2,43.13019354]
[1768545420072,21.5512255,143.26,143.2,43.13019354]
[1768545420266,5.17976445,143.25,143.2,43.13019354]
[1768545420462,5.17976445,143.24,143.2,43.13019354]
[1768545420771,5.17976445,143.23,143.2,43.13019354]
[1768545420966,21.5512255,143.26,143.2,43.13019354]
[1768545421167,5.17976445,143.25,143.2,43.13019354]
[1768545421465,5.17976445,143.24,143.2,43.13019354]
[1768545421665,5.17976445,143.23,143.2,43.13019354]
[1768545421966,21.5512255,143.26,143.2,43.13019354]
[1768545422164,5.17980599,143.25,143.2,43.13019354]
[1768545422365,5.17980599,143.24,143.2,43.13019354]
[1768545422567,5.17980599,143.23,143.2,43.13019354]
[1768545422864,21.5512255,143.26,143.2,43.13019354]
[1768545423072,5.17976369,143.25,143.2,43.13019354]
[1768545423365,5.17976369,143.24,143.2,36.84269354]
[1768545423570,5.17976369,143.23,143.2,36.84269354]
[1768545423872,17.24204888,143.28,143.18,37.6738395]
[1768545423873,5.17924065,143.22,143.18,37.6738395]
[1768545424066,5.17924065,143.21,143.18,37.6738395]
[1768545424369,21.36992599,143.24,143.18,37.6738395]
[1768545424569,5.17642688,143.23,143.18,37.6738395]
[1768545424770,5.17642688,143.22,143.18,37.6738395]
[1768545424973,21.36992599,143.24,143.18,37.6738395]
[1768545425169,10.11170756,143.23,143.18,37.6738395]
[1768545425466,21.36992599,143.24,143.18,37.6738395]
[1768545425467,10.11170756,143.22,143.18,37.6738395]
[1768545425668,21.36992599,143.24,143.18,37.6738395]
[1768545425867,10.10959059,143.23,143.18,37.6738395]
[1768545426065,10.10959059,143.22,143.18,37.6738395]
[1768545426266,21.36992599,143.24,143.18,37.6738395]
[1768545426468,10.10773022,143.23,143.18,37.6738395]
[1768545426668,10.10773022,143.22,143.18,37.6738395]
[1768545426863,21.36992599,143.24,143.18,37.6738395]
[1768545427066,10.10773022,143.23,143.18,37.6738395]
[1768545427267,10.10773022,143.22,143.18,37.6738395]
[1768545427573,21.36992599,143.24,143.18,37.6738395]
[1768545427775,10.10639956,143.23,143.18,37.6738395]
[1768545427976,10.10639956,143.22,143.18,37.6738395]
[1768545428274,21.36992599,143.24,143.18,37.6738395]
[1768545428474,10.10544613,143.23,143.18,37.6738395]
[1768545428677,10.10544613,143.22,143.18,37.6738395]
[1768545428874,21.36992599,143.24,143.18,37.6738395]
[1768545429078,10.105437,143.23,143.18,37.6738395]
[1768545429277,10.105437,143.22,143.18,37.6738395]
[1768545429473,21.36992599,143.24,143.18,37.6738395]
[1768545429683,10.10444086,143.23,143.18,37.6738395]
[1768545429976,5.17278399,143.22,143.18,37.6738395]
[1768545430174,21.36992599,143.24,143.18,37.6738395]
[1768545430375,10.10253588,143.23,143.18,43.9623395]
[1768545430577,21.36992599,143.24,143.18,43.9623395]
[1768545430775,10.10253588,143.23,143.18,43.9623395]
[1768545430975,21.36992599,143.24,143.18,43.9623395]
[1768545431176,10.10253588,143.23,143.18,43.9623395]
[1768545431377,21.36992599,143.24,143.18,43.9623395]
[1768545431579,10.10200173,143.23,143.18,43.9623395]
[1768545431770,21.36992599,143.24,143.18,43.9623395]
[1768545431970,10.10200173,143.23,143.18,43.9623395]
[1768545432171,21.36992599,143.24,143.18,43.9623395]
[1768545432371,10.10152096,143.23,143.18,43.9623395]
[1768545432576,21.36992599,143.24,143.18,43.9623395]
[1768545432880,10.10282209,143.23,143.18,43.9623395]
[1768545433075,21.36992599,143.24,143.18,43.9623395]
[1768545433275,31.45556584,143.23,143.18,43.9623395]
[1768545433477,10.10208793,143.22,143.18,43.9623395]
[1768545433676,21.35347791,143.23,143.18,43.9623395]
[1768545433980,10.10162589,143.22,143.18,43.9623395]
[1768545434190,21.35347791,143.23,143.18,43.9623395]
[1768545434474,10.10129748,143.22,143.18,43.9623395]
[1768545434676,21.35347791,143.23,143.18,43.9623395]
[1768545434882,10.10076917,143.22,143.18,43.9623395]
[1768545435082,21.35347791,143.23,143.18,43.9623395]
[1768545435285,10.10069908,143.22,143.18,43.9623395]
[1768545435584,21.35347791,143.23,143.18,37.6738395]
[1768545435786,10.10001674,143.22,143.18,37.6738395]
[1768545435981,21.35347791,143.23,143.18,37.6738395]
[1768545436177,10.10001349,143.22,143.18,37.6738395]
[1768545436372,21.35347791,143.23,143.18,37.6738395]
[1768545436579,10.10316021,143.22,143.18,37.6738395]
[1768545436877,21.35347791,143.23,143.18,37.6738395]
[1768545437078,10.10316316,143.22,143.18,37.6738395]
[1768545437384,21.35347791,143.23,143.18,37.6738395]
[1768545437681,10.10257686,143.22,143.18,37.6738395]
[1768545437883,21.35347791,143.23,143.18,37.6738395]
[1768545438083,10.10257686,143.22,143.18,37.6738395]
[1768545438282,21.35347791,143.23,143.18,37.6738395]
[1768545438482,10.10206175,143.22,143.18,37.6738395]
[1768545438685,21.35347791,143.23,143.18,37.6738395]
[1768545438885,10.10206175,143.22,143.18,37.6738395]
[1768545439085,21.35347791,143.23,143.18,37.6738395]
[1768545439291,10.10200103,143.22,143.18,37.6738395]
[1768545439493,21.35347791,143.23,143.18,37.6738395]
[1768545439789,10.10161221,143.22,143.18,37.6738395]
[1768545440094,22.94274793,143.23,143.18,37.6738395]
[1768545440292,10.10138531,143.22,143.18,37.6738395]
[1768545440492,22.94274793,143.23,143.18,37.6738395]
[1768545440794,10.10104136,143.22,143.18,37.6738395]
[1768545440995,22.94274793,143.23,143.18,37.6738395]
[1768545441295,10.10204563,143.22,143.18,37.6738395]
[1768545441493,22.94274793,143.23,143.18,37.6738395]
[1768545441793,10.1007087,143.22,143.18,37.6738395]
[1768545441992,22.94274793,143.23,143.18,37.6738395]
[1768545442195,10.100715,143.22,143.18,37.6738395]
[1768545442395,22.94274793,143.23,143.18,37.6738395]
[1768545442596,31.49178283,143.22,143.14,37.0717439]
[1768545442799,21.3915566,143.22,143.14,37.0717439]
[1768545444396,10.09809466,143.21,143.14,37.0717439]
[1768545444593,21.3915566,143.22,143.14,37.0717439]
[1768545444789,10.09802007,143.21,143.14,37.0717439]
[1768545444989,21.3915566,143.22,143.14,37.0717439]
[1768545445198,10.09868665,143.21,143.14,37.0717439]
[1768545445398,21.3915566,143.22,143.14,37.0717439]
[1768545445597,10.09767077,143.21,143.14,37.0717439]
[1768545445800,27.6785566,143.22,143.14,37.0717439]
[1768545445994,31.48340544,143.21,143.14,37.0717439]
[1768545446198,21.38574577,143.21,143.14,37.0717439]
[1768545450902,10.0925224,143.2,143.14,37.0717439]
[1768545451105,21.38574577,143.21,143.14,37.0717439]
[1768545451290,5.16684763,143.2,143.14,37.0717439]
[1768545451493,21.38574577,143.21,143.14,37.0717439]
[1768545451692,5.16621537,143.2,143.14,37.0717439]
[1768545451894,21.38574577,143.21,143.14,37.0717439]
[1768545452095,5.16621537,143.2,143.14,37.0717439]
[1768545452294,21.38574577,143.21,143.14,37.0717439]
[1768545452500,5.16571035,143.2,143.14,37.0717439]
[1768545452706,21.38574577,143.21,143.14,37.0717439]
[1768545453003,5.16574304,143.2,143.14,37.0717439]
[1768545453201,21.38574577,143.21,143.14,37.0717439]
[1768545455306,5.01690758,143.2,143.14,37.0717439]
[1768545455502,21.38574577,143.21,143.14,37.0717439]
[1768545455702,5.01666937,143.2,143.14,37.0717439]
[1768545455902,21.38574577,143.21,143.14,37.0717439]
[1768545456105,5.01755254,143.2,143.14,37.0717439]
[1768545456305,21.38574577,143.21,143.14,37.0717439]
[1768545456508,5.01744724,143.2,143.14,37.0717439]
[1768545456702,21.38574577,143.21,143.14,37.0717439]
[1768545456901,5.01744724,143.2,143.14,37.0717439]
[1768545457101,21.38574577,143.21,143.14,37.0717439]
[1768545457405,27.61015157,143.22,143.14,37.0717439]
[1768545457605,10.18186817,143.21,143.14,37.0717439]
[1768545457805,27.61015157,143.22,143.14,37.0717439]
[1768545457998,10.18186229,143.21,143.14,37.0717439]
[1768545458199,27.61015157,143.22,143.14,37.0717439]
[1768545458506,10.18223828,143.21,143.14,37.0717439]
[1768545458708,27.61015157,143.22,143.14,37.0717439]
[1768545459007,10.18255329,143.21,143.14,37.0717439]
[1768545459208,27.61015157,143.22,143.14,37.0717439]
[1768545459401,10.18292922,143.21,143.14,37.0717439]
[1768545459706,27.61015157,143.22,143.14,37.0717439]
[1768545460005,10.18281084,143.21,143.14,37.0717439]
[1768545460205,27.61015157,143.22,143.14,37.0717439]
[1768545460505,10.18349137,143.21,143.14,37.0717439]
[1768545460704,27.61015157,143.22,143.14,37.0717439]
[1768545461006,5.01719552,143.21,143.14,37.0717439]
[1768545461198,27.61015157,143.22,143.14,37.0717439]
[1768545461398,5.0176577,143.21,143.14,37.0717439]
[1768545461596,27.61015157,143.22,143.14,37.0717439]
[1768545461795,5.0176577,143.21,143.14,37.0717439]
[1768545462004,27.61015157,143.22,143.14,37.0717439]
[1768545462202,5.0176577,143.21,143.14,37.0717439]
[1768545462505,27.61015157,143.22,143.14,37.0717439]
[1768545462707,5.01823881,143.21,143.14,37.0717439]
[1768545462899,27.61015157,143.22,143.14,37.0717439]
[1768545463098,5.01823881,143.21,143.14,37.0717439]
[1768545463300,27.61015157,143.22,143.14,37.0717439]
[1768545463501,5.01886965,143.21,143.14,37.0717439]
[1768545463703,27.61015157,143.22,143.14,37.0717439]
[1768545463904,5.01886965,143.21,143.14,37.0717439]
[1768545464104,27.61015157,143.22,143.14,37.0717439]
[1768545464308,5.01886965,143.21,143.14,37.0717439]
[1768545464608,27.61015157,143.22,143.14,37.0717439]
[1768545464809,5.019597,143.21,143.14,37.0717439]
[1768545465005,27.61015157,143.22,143.14,37.0717439]
[1768545465207,5.019597,143.21,143.14,37.0717439]
[1768545465407,27.61015157,143.22,143.14,37.0717439]
[1768545465604,5.01973758,143.21,143.14,37.0717439]
[1768545465805,27.61015157,143.22,143.14,37.0717439]
[1768545466006,5.01973758,143.21,143.14,37.0717439]
[1768545466309,5.16892362,143.21,143.14,37.0717439]
[1768545466502,27.61015157,143.22,143.14,37.0717439]
[1768545466700,10.18961616,143.21,143.14,37.0717439]
[1768545466904,27.61015157,143.22,143.14,37.0717439]
[1768545467100,10.18961616,143.21,143.14,37.0717439]
[1768545467306,27.61015157,143.22,143.14,37.0717439]
[1768545467507,10.19148822,143.21,143.14,37.0717439]
[1768545467812,27.61015157,143.22,143.14,37.0717439]
[1768545468013,10.19148822,143.21,143.14,37.0717439]
[1768545468204,27.61015157,143.22,143.14,37.0717439]
[1768545468405,10.19343028,143.21,143.14,37.0717439]
[1768545468613,27.61015157,143.22,143.14,37.0717439]
[1768545468914,10.19343028,143.21,143.14,37.0717439]
[1768545469111,27.61015157,143.22,143.14,37.0717439]
[1768545469409,10.19354461,143.21,143.14,37.0717439]
[1768545469605,27.61015157,143.22,143.14,37.0717439]
[1768545469800,10.18852356,143.21,143.14,37.0717439]
[1768545470004,27.61015157,143.22,143.14,37.0717439]
[1768545470204,10.18844589,143.21,143.14,37.0717439]
[1768545470412,27.61015157,143.22,143.14,37.0717439]
[1768545470608,10.18878493,143.21,143.14,37.0717439]
[1768545470813,27.61015157,143.22,143.14,37.0717439]
[1768545471015,10.18878493,143.21,143.14,37.0717439]
[1768545471214,27.61015157,143.22,143.14,37.0717439]
[1768545471512,10.18958509,143.21,143.14,37.0717439]
[1768545471811,27.61015157,143.22,143.14,37.0717439]
[1768545472012,10.18964611,143.21,143.14,37.0717439]
[1768545472215,27.61015157,143.22,143.14,37.0717439]
[1768545472513,10.19003989,143.21,143.14,37.0717439]
[1768545472711,27.61015157,143.22,143.14,37.0717439]
[1768545472915,10.19003989,143.21,143.14,37.0717439]
[1768545473115,27.61015157,143.22,143.14,37.0717439]
[1768545473313,10.19033758,143.21,143.14,37.0717439]
[1768545473612,27.61015157,143.22,143.14,37.0717439]
[1768545473813,10.18993717,143.21,143.14,37.0717439]
[1768545474114,27.61015157,143.22,143.14,37.0717439]
[1768545474414,10.19017677,143.21,143.14,37.0717439]
[1768545474614,5.02037135,143.2,143.14,37.0717439]
[1768545474914,27.61015157,143.22,143.14,37.0717439]
[1768545475117,10.19242594,143.21,143.14,37.0717439]
[1768545475317,5.02177175,143.2,143.14,37.0717439]
[1768545475513,27.61015157,143.22,143.14,37.0717439]
[1768545475818,31.25426952,143.21,143.14,37.0717439]
[1768545476014,5.0231142,143.2,143.14,37.0717439]
[1768545476312,21.05911831,143.21,143.14,37.0717439]
[1768545476616,5.02344337,143.2,143.14,37.0717439]
[1768545476813,21.05911831,143.21,143.14,37.0717439]
[1768545477014,5.0233728,143.2,143.14,37.0717439]
[1768545477208,21.05911831,143.21,143.14,37.0717439]
[1768545477411,10.19660121,143.2,143.14,37.0717439]
[1768545477611,21.05911831,143.21,143.14,37.0717439]
[1768545477812,10.19660121,143.2,143.14,37.0717439]
[1768545478016,21.05911831,143.21,143.14,37.0717439]
[1768545478218,10.19775944,143.2,143.14,37.0717439]
[1768545478412,21.05911831,143.21,143.14,37.0717439]
[1768545478717,10.19821806,143.2,143.14,37.0717439]
[1768545479018,21.05911831,143.21,143.14,37.0717439]
[1768545479316,10.19383947,143.2,143.14,37.0717439]
[1768545479517,21.05911831,143.21,143.14,37.0717439]
[1768545479719,10.19273893,143.2,143.14,37.0717439]
[1768545480014,21.05911831,143.21,143.14,37.0717439]
[1768545480215,10.19275847,143.2,143.14,37.0717439]
[1768545480415,21.05911831,143.21,143.14,37.0717439]
[1768545480617,10.19319982,143.2,143.14,37.0717439]
[1768545480815,27.34651831,143.21,143.14,37.0717439]
[1768545481012,10.19319982,143.2,143.14,37.0717439]
[1768545481214,27.34651831,143.21,143.14,37.0717439]
[1768545481414,10.19390079,143.2,143.14,37.0717439]
[1768545481619,27.34651831,143.21,143.14,37.0717439]
[1768545481812,10.19390079,143.2,143.14,37.0717439]
[1768545482017,27.34651831,143.21,143.14,37.0717439]
[1768545482215,16.48180079,143.2,143.14,37.0717439]
[1768545482419,10.19390079,143.19,143.14,37.0717439]
[1768545482715,27.1819622,143.2,143.14,37.0717439]
[1768545483022,10.19344183,143.19,143.14,37.0717439]
[1768545483209,27.1819622,143.2,143.14,37.0717439]
[1768545483414,10.19357431,143.19,143.14,37.0717439]
[1768545483613,31.06448392,143.18,143.12,35.77979251]
[1768545483913,10.19282196,143.17,143.12,35.77979251]
[1768545484113,20.87166196,143.18,143.12,35.77979251]
[1768545484315,10.19246651,143.17,143.12,35.77979251]
[1768545484517,20.87166196,143.18,143.12,35.77979251]
[1768545484719,10.18882429,143.17,143.12,35.77979251]
[1768545484919,5.02031996,143.17,143.12,35.77979251]
[1768545485118,27.16036196,143.18,143.12,35.77979251]
[1768545485418,10.19176608,143.17,143.12,35.77979251]
[1768545485618,27.16036196,143.18,143.12,35.77979251]
[1768545485818,10.18898248,143.17,143.12,35.77979251]
[1768545486021,27.16036196,143.18,143.12,35.77979251]
[1768545486220,10.18898248,143.17,143.12,35.77979251]
[1768545486421,27.16036196,143.18,143.12,35.77979251]
[1768545486723,37.28247267,143.17,143.09,35.77979251]
[1768545486919,10.18692405,143.16,143.09,35.77979251]
[1768545487114,28.6860177,143.17,143.09,35.77979251]
[1768545487318,10.18689468,143.16,143.09,35.77979251]
[1768545487523,28.6860177,143.17,143.09,35.77979251]
[1768545487723,10.18340839,143.16,143.09,35.77979251]
[1768545488021,27.07348184,143.19,143.09,35.77979251]
[1768545488318,5.1642349,143.18,143.09,35.77979251]
[1768545488526,5.01870795,143.17,143.09,35.77979251]
[1768545488728,27.07348184,143.19,143.09,35.77979251]
[1768545489025,10.18242836,143.18,143.09,35.77979251]
[1768545489324,27.07348184,143.19,143.09,35.77979251]
[1768545489325,5.01871647,143.17,143.09,35.77979251]
[1768545489524,27.07348184,143.19,143.09,35.77979251]
[1768545489720,10.18112868,143.18,143.09,35.77979251]
[1768545489928,5.0180998,143.17,143.09,35.77979251]
[1768545490121,27.07348184,143.19,143.09,35.77979251]
[1768545490320,10.18093146,143.18,143.09,35.77979251]
[1768545490624,5.01802416,143.17,143.09,35.77979251]
[1768545490923,27.07348184,143.19,143.09,35.77979251]
[1768545491124,10.17962195,143.18,143.09,35.77979251]
[1768545491318,5.01733737,143.17,143.09,35.77979251]
[1768545491517,27.07348184,143.19,143.09,35.77979251]
[1768545491717,10.17366471,143.18,143.09,35.77979251]
[1768545491916,5.0144077,143.17,143.09,35.77979251]
[1768545492117,27.07348184,143.19,143.09,35.77979251]
[1768545492321,10.17356028,143.18,143.09,35.77979251]
[1768545492626,27.07348184,143.19,143.09,35.77979251]
[1768545492919,10.16791068,143.18,143.09,35.77979251]
[1768545493120,27.07348184,143.19,143.09,35.77979251]
[1768545493419,10.16681087,143.18,143.09,35.77979251]
[1768545493625,27.07348184,143.19,143.09,35.77979251]
[1768545493823,10.16610398,143.18,143.09,35.77979251]
[1768545494026,27.07348184,143.19,143.09,35.77979251]
[1768545494217,5.0106407,143.18,143.09,35.77979251]
[1768545494418,27.07348184,143.19,143.09,35.77979251]
[1768545494620,10.16538318,143.18,143.09,35.77979251]
[1768545494820,27.07348184,143.19,143.09,35.77979251]
[1768545495015,10.1655344,143.18,143.09,35.77979251]
[1768545495221,20.78518184,143.19,143.09,35.77979251]
[1768545495417,10.16448283,143.18,143.09,42.07209251]
[1768545495624,20.62478939,143.21,143.11,35.77979251]
[1768545495925,10.16457457,143.2,143.11,35.77979251]
[1768545496122,10.16457457,143.19,143.11,35.77979251]
[1768545496327,10.16457457,143.18,143.11,35.77979251]
[1768545496527,20.62478939,143.21,143.11,35.77979251]
[1768545496728,10.16380219,143.2,143.11,35.77979251]
[1768545497026,10.16380219,143.19,143.11,35.77979251]
[1768545497225,10.16380219,143.18,143.11,35.77979251]
[1768545497421,20.62478939,143.21,143.11,35.77979251]
[1768545497629,10.1630604,143.2,143.11,35.77979251]
[1768545497828,10.1630604,143.19,143.11,42.07139251]
[1768545498030,10.1630604,143.18,143.11,42.07139251]
[1768545498225,20.62478939,143.21,143.11,42.07139251]
[1768545498425,30.72817631,143.2,143.11,42.07139251]
[1768545498632,10.16052974,143.19,143.11,42.07139251]
[1768545498929,10.16052974,143.18,143.13,35.77979251]
[1768545499119,20.56764657,143.2,143.13,35.77979251]
[1768545499323,10.15857223,143.19,143.13,35.77979251]
[1768545499524,10.15857223,143.18,143.13,35.77979251]
[1768545499729,20.56764657,143.2,143.13,35.77979251]
[1768545499925,10.15709887,143.19,143.13,35.77979251]
[1768545500133,20.56764657,143.2,143.13,35.77979251]
[1768545500428,10.15412982,143.19,143.13,35.77979251]
[1768545500629,20.56764657,143.2,143.13,35.77979251]
[1768545500831,10.15413171,143.19,143.13,35.77979251]
[1768545501031,20.56764657,143.2,143.13,42.07049251]
[1768545501223,10.1556919,143.19,143.13,42.07049251]
[1768545501426,20.56764657,143.2,143.13,42.07049251]
[1768545501626,5.00146551,143.19,143.13,42.07049251]
[1768545501827,20.56764657,143.2,143.13,42.07049251]
[1768545502028,5.00092957,143.19,143.13,42.07049251]
[1768545502331,20.56764657,143.2,143.14,40.71950753]
[1768545502937,5.00040514,143.19,143.14,40.71950753]
[1768545503136,20.56764657,143.2,143.14,40.71950753]
[1768545503433,5.00010286,143.19,143.14,40.71950753]
[1768545503634,20.56764657,143.2,143.14,40.71950753]
[1768545503837,5.00011394,143.19,143.14,40.71950753]
[1768545504135,20.56764657,143.2,143.14,40.71950753]
[1768545504337,5.0004973,143.19,143.14,40.71950753]
[1768545504533,20.56764657,143.2,143.14,40.71950753]
[1768545504733,5.00056045,143.19,143.14,40.71950753]
[1768545504933,20.56764657,143.2,143.14,40.71950753]
[1768545505229,5.00061193,143.19,143.14,40.71950753]
[1768545505430,20.56764657,143.2,143.14,40.71950753]
[1768545505636,5.00309732,143.19,143.14,40.71950753]
[1768545505837,20.56764657,143.2,143.14,40.71950753]
[1768545506136,5.00397272,143.19,143.15,6.2898]
[1768545506439,20.56764657,143.2,143.15,6.2898]
[1768545506638,10.15579018,143.19,143.15,40.71920753]
[1768545506837,21.95430487,143.22,143.16,6.2893]
[1768545507132,5.15106497,143.21,143.16,40.71870753]
[1768545507336,20.36383579,143.22,143.16,34.42940753]
[1768545509643,21.90037743,143.24,143.16,34.42940753]
[1768545513446,21.8388351,143.27,143.18,35.31591493]
[1768545516251,21.8388351,143.27,143.19,41.60391493]
[1768545518441,20.24836602,143.27,143.19,41.60391493]
[1768545518645,21.8388351,143.27,143.19,41.60391493]
[1768545519651,4.91787423,143.26,143.19,41.60391493]
[1768545519953,21.8388351,143.27,143.19,41.60391493]
[1768545520142,4.91787424,143.26,143.19,41.60391493]
[1768545520344,20.24836602,143.27,143.21,35.31591493]
[1768545521455,20.24836602,143.27,143.22,41.60251493]
[1768545522246,17.24204888,143.28,143.23,6.2863]
[1768545522652,37.36239268,143.28,143.23,6.2863]
[1768545525051,37.36239268,143.28,143.24,6.2858]
[1768545531055,2.818e-05,143.28,143.25,35.33862847]
[1768545532763,2.818e-05,143.28,143.26,6.2849]
[1768545533363,2.818e-05,143.28,143.24,6.2857]
[1768545537867,2.818e-05,143.28,143.23,35.33862847]
[1768545554382,17.83022094,143.28,143.21,35.33862847]
[1768545554689,4.90351745,143.27,143.21,35.33862847]
[1768545554986,17.83022094,143.28,143.21,35.33862847]
[1768545555186,4.90356618,143.27,143.21,35.33862847]
[1768545555388,4.9047014,143.26,143.21,35.33862847]
[1768545555591,17.83022094,143.28,143.21,35.33862847]
[1768545555794,4.90470446,143.27,143.21,35.33862847]
[1768545556086,10.0518519,143.26,143.21,35.33862847]
[1768545556290,24.11452094,143.28,143.21,35.33862847]
[1768545556492,10.05427078,143.27,143.21,35.33862847]
[1768545556694,10.05427078,143.26,143.21,35.33862847]
[1768545556994,19.30031998,143.27,143.21,35.33862847]
[1768545557194,10.05424823,143.26,143.21,35.33862847]
[1768545557493,19.30031998,143.27,143.21,35.33862847]
[1768545557791,10.05716614,143.26,143.21,35.33862847]
[1768545557988,19.30031998,143.27,143.21,35.33862847]
[1768545558191,10.05716614,143.26,143.21,35.33862847]
[1768545558489,19.30031998,143.27,143.21,35.33862847]
[1768545558690,10.0607399,143.26,143.21,35.33862847]
[1768545558884,19.30031998,143.27,143.21,35.33862847]
[1768545559086,27.65705811,143.26,143.21,35.33862847]
[1768545559282,10.06073588,143.25,143.21,35.33862847]
[1768545559485,17.59632223,143.26,143.21,35.33862847]
[1768545559486,5.15165059,143.24,143.21,35.33862847]
[1768545559681,17.59632223,143.26,143.21,35.33862847]
[1768545559882,10.06055117,143.25,143.21,35.33862847]
[1768545560192,5.15157938,143.24,143.21,35.33862847]
[1768545560391,17.59632223,143.26,143.21,35.33862847]
[1768545560584,10.06089038,143.25,143.21,35.33862847]
[1768545560892,10.06089038,143.24,143.21,35.33862847]
[1768545561091,23.88152223,143.26,143.21,35.33862847]
[1768545561292,10.06093437,143.25,143.21,35.33862847]
[1768545561491,10.06093437,143.24,143.21,35.33862847]
[1768545561793,23.88152223,143.26,143.21,35.33862847]
[1768545562093,10.06151401,143.25,143.17,6.2887]
[1768545562290,10.06151401,143.24,143.18,32.75448942]
[1768545562584,23.88152223,143.26,143.18,32.75448942]
[1768545562791,10.06182535,143.25,143.18,32.75448942]
[1768545562979,10.06182535,143.24,143.18,32.75448942]
[1768545563180,23.88152223,143.26,143.18,32.75448942]
[1768545563393,16.34746378,143.25,143.18,32.75448942]
[1768545563689,10.06186378,143.24,143.18,32.75448942]
[1768545563889,6.2856,143.25,143.18,32.75448942]
[1768545564093,10.0629227,143.24,143.18,32.75448942]
[1768545564391,6.2856,143.25,143.18,32.75448942]
[1768545564591,10.06211036,143.24,143.18,32.75448942]
[1768545564792,6.2856,143.25,143.18,32.75448942]
[1768545564991,10.06209973,143.24,143.18,32.75448942]
[1768545565189,6.2856,143.25,143.18,32.75448942]
[1768545565499,10.06173269,143.24,143.18,32.75448942]
[1768545565689,6.2856,143.25,143.18,32.75448942]
[1768545565993,10.06195382,143.24,143.18,32.75448942]
[1768545566293,6.2856,143.25,143.18,32.75448942]
[1768545566498,10.06129984,143.24,143.18,32.75448942]
[1768545566793,6.2856,143.25,143.18,32.75448942]
[1768545566994,10.06129984,143.24,143.18,32.75448942]
[1768545567188,6.2856,143.25,143.18,32.75448942]
[1768545567387,5.15175793,143.24,143.18,32.75448942]
[1768545567588,6.2856,143.25,143.18,32.75448942]
[1768545567790,5.15176824,143.24,143.18,32.75448942]
[1768545568088,6.2856,143.25,143.18,32.75448942]
[1768545568494,5.15143953,143.24,143.18,32.75448942]
[1768545568694,6.2856,143.25,143.18,32.75448942]
[1768545568896,5.15143953,143.24,143.18,32.75448942]
[1768545569194,6.2856,143.25,143.18,32.75448942]
[1768545569896,5.15307319,143.24,143.18,32.75448942]
[1768545570193,6.2856,143.25,143.18,32.75448942]
[1768545574496,10.05451997,143.24,143.18,32.75448942]
[1768545574802,6.2856,143.25,143.18,32.75448942]
[1768545575098,10.05647212,143.24,143.18,32.75448942]
[1768545575400,6.2856,143.25,143.18,32.75448942]
[1768545575700,5.14806959,143.24,143.18,32.75448942]
[1768545576002,6.2856,143.25,143.18,32.75448942]
[1768545576200,5.14806959,143.24,143.18,32.75448942]
[1768545576401,6.2856,143.25,143.18,32.75448942]
[1768545576602,5.148259,143.24,143.18,32.75448942]
[1768545576801,6.2856,143.25,143.18,32.75448942]
[1768545577001,5.148259,143.24,143.18,32.75448942]
[1768545577194,6.2856,143.25,143.18,32.75448942]
[1768545577397,5.14854848,143.24,143.18,32.75448942]
[1768545577596,6.2856,143.25,143.18,32.75448942]
[1768545577801,5.14913507,143.24,143.18,32.75448942]
[1768545578001,6.2856,143.25,143.18,32.75448942]
[1768545578300,5.14916182,143.24,143.18,32.75448942]
[1768545578503,6.2856,143.25,143.18,32.75448942]
[1768545578698,5.1510135,143.24,143.18,32.75448942]
[1768545578900,6.2856,143.25,143.18,32.75448942]
[1768545579095,5.1510135,143.24,143.18,32.75448942]
[1768545579297,6.2856,143.25,143.18,32.75448942]
[1768545579497,5.15084535,143.24,143.18,32.75448942]
[1768545579698,6.2856,143.25,143.18,32.75448942]
[1768545580000,5.15090072,143.24,143.18,32.75448942]
[1768545580193,6.2856,143.25,143.18,32.75448942]
[1768545580405,5.1500757,143.24,143.18,32.75448942]
[1768545580607,6.2856,143.25,143.18,32.75448942]
[1768545580800,5.1500757,143.24,143.18,32.75448942]
[1768545581000,6.2856,143.25,143.18,32.75448942]
[1768545581202,5.15002365,143.24,143.18,32.75448942]
[1768545581402,6.2856,143.25,143.18,32.75448942]
[1768545581597,5.14997127,143.24,143.18,32.75448942]
[1768545581807,6.2856,143.25,143.18,32.75448942]
[1768545582002,5.15198909,143.24,143.18,32.75448942]
[1768545582202,6.2856,143.25,143.18,32.75448942]